[Event "*** SCC Grand Prix: Titled Tuesday Blitz"]
[Site "Chess.com"]
[Date "2020.08.25"]
[Round "5"]
[White "nitpicker"]
[Black "Nemsko"]
[Result "1-0"]
[WhiteElo "2223"]
[BlackElo "2355"]
[TimeControl "180+1"]
[EndTime "10:57:46 PDT"]
[Termination "nitpicker won by checkmate"]

1. d4 {[%clk 0:03:00.9]} 1... Nf6 {[%clk 0:02:58.6]} 2. c4 {[%clk 0:02:59.5]}
2... e6 {[%clk 0:02:57.7]} 3. g3 {[%clk 0:02:58.3]} 3... d5 {[%clk 0:02:55.8]}
4. Nf3 {[%clk 0:02:57.6]} 4... Bb4+ {[%clk 0:02:55.3]} 5. Bd2 {[%clk 0:02:56]}
5... Be7 {[%clk 0:02:52.8]} 6. Qc2 {[%clk 0:02:54.8]} 6... O-O {[%clk
0:02:50.2]} 7. Bg2 {[%clk 0:02:55.4]} 7... c6 {[%clk 0:02:50]} 8. O-O {[%clk
0:02:55.2]} 8... b6 {[%clk 0:02:49.2]} 9. Bf4 {[%clk 0:02:52.9]} 9... Ba6 {[%clk
0:02:47.7]} 10. Nbd2 {[%clk 0:02:45.4]} 10... Nbd7 {[%clk 0:02:40.9]} 11. Rfd1
{[%clk 0:02:39.5]} 11... Nh5 {[%clk 0:02:39.1]} 12. Rac1 {[%clk 0:02:37.8]}
12... Nxf4 {[%clk 0:02:38]} 13. gxf4 {[%clk 0:02:38.7]} 13... Bd6 {[%clk
0:02:30.2]} 14. e3 {[%clk 0:02:38.6]} 14... f6 {[%clk 0:02:26.1]} 15. f5 {[%clk
0:02:31.5]} 15... Qe7 {[%clk 0:02:04.3]} 16. cxd5 {[%clk 0:02:14.5]} 16... cxd5
{[%clk 0:01:54.4]} 17. Nh4 {[%clk 0:02:07]} 17... Bb7 {[%clk 0:01:51.5]} 18. Qb3
{[%clk 0:02:03.2]} 18... Kh8 {[%clk 0:01:45.5]} 19. e4 {[%clk 0:01:53.1]} 19...
dxe4 {[%clk 0:01:34.6]} 20. fxe6 {[%clk 0:01:52.8]} 20... f5 {[%clk 0:01:34.1]}
21. Qh3 {[%clk 0:01:44.2]} 21... Qxe6 {[%clk 0:01:26.9]} 22. Re1 {[%clk
0:01:25.7]} 22... Qf7 {[%clk 0:00:53.5]} 23. Nc4 {[%clk 0:01:15.1]} 23... Bf4
{[%clk 0:00:50.4]} 24. Ne3 {[%clk 0:01:11]} 24... g6 {[%clk 0:00:39.5]} 25. Bf1
{[%clk 0:01:02.8]} 25... Rac8 {[%clk 0:00:30]} 26. Bc4 {[%clk 0:01:02]} 26...
Qf6 {[%clk 0:00:22.1]} 27. Kh1 {[%clk 0:00:51.5]} 27... Bg5 {[%clk 0:00:13.9]}
28. Nhg2 {[%clk 0:00:50.6]} 28... h5 {[%clk 0:00:10.8]} 29. b3 {[%clk
0:00:37.4]} 29... Kg7 {[%clk 0:00:09.3]} 30. Rcd1 {[%clk 0:00:36.2]} 30... f4
{[%clk 0:00:08.7]} 31. Qxd7+ {[%clk 0:00:35]} 31... Kh6 {[%clk 0:00:07.3]} 32.
Qh3 {[%clk 0:00:31.5]} 32... fxe3 {[%clk 0:00:07.2]} 33. Nxe3 {[%clk 0:00:31.6]}
33... Qxf2 {[%clk 0:00:05.3]} 34. Ng4+ {[%clk 0:00:31.3]} 34... Kg7 {[%clk
0:00:02.8]} 35. Nxf2 {[%clk 0:00:31.3]} 35... e3+ {[%clk 0:00:03.2]} 36. d5
{[%clk 0:00:27.1]} 36... exf2 {[%clk 0:00:02.8]} 37. Rf1 {[%clk 0:00:25.4]}
37... Rf7 {[%clk 0:00:02]} 38. Qg3 {[%clk 0:00:25.3]} 38... Bh6 {[%clk
0:00:01.4]} 39. Qe5+ {[%clk 0:00:24.6]} 39... Kh7 {[%clk 0:00:01.8]} 40. Bd3
{[%clk 0:00:23.5]} 40... Rcf8 {[%clk 0:00:01.9]} 41. Qxh5 {[%clk 0:00:22.2]}
41... Rf6 {[%clk 0:00:01.7]} 42. Rxf2 {[%clk 0:00:18.5]} 42... Kg7 {[%clk
0:00:01.2]} 43. Qg4 {[%clk 0:00:14.4]} 43... Bxd5+ {[%clk 0:00:01.2]} 44. Kg1
{[%clk 0:00:13]} 44... Be3 {[%clk 0:00:01.4]} 45. Rf1 {[%clk 0:00:11.3]} 45...
Bxf2+ {[%clk 0:00:01.8]} 46. Rxf2 {[%clk 0:00:11.7]} 46... Rxf2 {[%clk
0:00:02.6]} 47. Qxg6+ {[%clk 0:00:11.3]} 47... Kh8 {[%clk 0:00:03.2]} 48. Qh7#
{[%clk 0:00:11.4]} 1-0

[Event "*** SCC Grand Prix: Titled Tuesday Blitz"]
[Site "Chess.com"]
[Date "2020.08.25"]
[Round "5"]
[White "RaunakSadhwani2005"]
[Black "QuintilianoR"]
[Result "1-0"]
[WhiteElo "2856"]
[BlackElo "2614"]
[TimeControl "180+1"]
[EndTime "10:57:47 PDT"]
[Termination "RaunakSadhwani2005 won on time"]

1. e4 {[%clk 0:03:00.9]} 1... e5 {[%clk 0:02:58.1]} 2. d4 {[%clk 0:03:00]} 2...
exd4 {[%clk 0:02:57.3]} 3. Qxd4 {[%clk 0:03:00.9]} 3... Nc6 {[%clk 0:02:57]} 4.
Qc4 {[%clk 0:03:01.4]} 4... Nf6 {[%clk 0:02:55.2]} 5. Nc3 {[%clk 0:03:01.6]}
5... Be7 {[%clk 0:02:43]} 6. Bg5 {[%clk 0:02:55.4]} 6... h6 {[%clk 0:02:38.6]}
7. Bh4 {[%clk 0:02:52.2]} 7... O-O {[%clk 0:02:35.7]} 8. O-O-O {[%clk
0:02:51.9]} 8... d6 {[%clk 0:02:33.8]} 9. f4 {[%clk 0:02:50.6]} 9... Be6 {[%clk
0:01:50.9]} 10. Qe2 {[%clk 0:02:50.5]} 10... a6 {[%clk 0:01:49.3]} 11. Nf3
{[%clk 0:02:33.6]} 11... Re8 {[%clk 0:01:40.1]} 12. e5 {[%clk 0:02:10.1]} 12...
Nd7 {[%clk 0:01:37.8]} 13. Bxe7 {[%clk 0:02:10.1]} 13... Qxe7 {[%clk 0:01:30.7]}
14. exd6 {[%clk 0:02:08.8]} 14... cxd6 {[%clk 0:01:30.5]} 15. Qd2 {[%clk
0:02:09]} 15... Rad8 {[%clk 0:00:45.5]} 16. Bd3 {[%clk 0:02:02.3]} 16... Nc5
{[%clk 0:00:44]} 17. Rhe1 {[%clk 0:02:01.9]} 17... Qf6 {[%clk 0:00:43.5]} 18.
Kb1 {[%clk 0:01:56.7]} 18... d5 {[%clk 0:00:30.4]} 19. f5 {[%clk 0:01:49.1]}
19... d4 {[%clk 0:00:19.2]} 20. fxe6 {[%clk 0:01:43.2]} 20... dxc3 {[%clk
0:00:19.4]} 21. exf7+ {[%clk 0:01:43.9]} 21... Qxf7 {[%clk 0:00:19.8]} 22. Qxc3
{[%clk 0:01:37.9]} 22... Nxd3 {[%clk 0:00:19.2]} 23. Rxe8+ {[%clk 0:01:35.8]}
23... Rxe8 {[%clk 0:00:19.3]} 24. Qxd3 {[%clk 0:01:30.6]} 24... Qf4 {[%clk
0:00:18.6]} 25. Qb3+ {[%clk 0:01:28.2]} 25... Kh7 {[%clk 0:00:15.9]} 26. Qxb7
{[%clk 0:01:25.9]} 26... Ne5 {[%clk 0:00:16]} 27. Nxe5 {[%clk 0:01:13.1]} 27...
Qxe5 {[%clk 0:00:16.9]} 28. Qxa6 {[%clk 0:01:10.5]} 28... Qxh2 {[%clk
0:00:16.5]} 29. Qd3+ {[%clk 0:01:09.8]} 29... Kh8 {[%clk 0:00:16.9]} 30. Qb5
{[%clk 0:01:04.6]} 30... Rf8 {[%clk 0:00:16.1]} 31. Qc6 {[%clk 0:01:01.1]} 31...
Rb8 {[%clk 0:00:14.6]} 32. b3 {[%clk 0:00:59.7]} 32... Qh5 {[%clk 0:00:13.3]}
33. Qd5 {[%clk 0:00:57.4]} 33... Qg6 {[%clk 0:00:11.9]} 34. Qd6 {[%clk
0:00:54.8]} 34... Qe8 {[%clk 0:00:10.6]} 35. Qd4 {[%clk 0:00:39.7]} 35... Rc8
{[%clk 0:00:09.9]} 36. Rd3 {[%clk 0:00:38.4]} 36... Qc6 {[%clk 0:00:09.9]} 37.
Rd2 {[%clk 0:00:37.6]} 37... Qg6 {[%clk 0:00:09.5]} 38. Kb2 {[%clk 0:00:36.4]}
38... Qg5 {[%clk 0:00:09.5]} 39. a4 {[%clk 0:00:35.1]} 39... Rf8 {[%clk
0:00:09.2]} 40. Qc3 {[%clk 0:00:29.7]} 40... Qg6 {[%clk 0:00:09.2]} 41. a5
{[%clk 0:00:27.4]} 41... Qa6 {[%clk 0:00:08.6]} 42. Qb4 {[%clk 0:00:25.1]} 42...
Ra8 {[%clk 0:00:07.3]} 43. Rd5 {[%clk 0:00:24.9]} 43... Qf6+ {[%clk 0:00:07]}
44. Qc3 {[%clk 0:00:25.3]} 44... Qe6 {[%clk 0:00:06.6]} 45. Qd4 {[%clk
0:00:23.9]} 45... Kh7 {[%clk 0:00:03.7]} 46. Qd3+ {[%clk 0:00:21.2]} 1-0

[Event "*** SCC Grand Prix: Titled Tuesday Blitz"]
[Site "Chess.com"]
[Date "2020.08.25"]
[Round "5"]
[White "shnitez"]
[Black "esrosenberg"]
[Result "1-0"]
[WhiteElo "2457"]
[BlackElo "2184"]
[TimeControl "180+1"]
[EndTime "10:57:49 PDT"]
[Termination "shnitez won by checkmate"]

1. d4 {[%clk 0:03:00.9]} 1... Nf6 {[%clk 0:02:59.7]} 2. c4 {[%clk 0:03:00.2]}
2... e6 {[%clk 0:02:59.9]} 3. f3 {[%clk 0:02:55.8]} 3... Bb4+ {[%clk 0:02:54.3]}
4. Nc3 {[%clk 0:02:52.8]} 4... d5 {[%clk 0:02:48.5]} 5. cxd5 {[%clk 0:02:37.9]}
5... Nxd5 {[%clk 0:02:42]} 6. Bd2 {[%clk 0:02:25.4]} 6... Qh4+ {[%clk
0:02:27.1]} 7. g3 {[%clk 0:02:24.5]} 7... Qxd4 {[%clk 0:02:27.1]} 8. Rc1 {[%clk
0:01:38.7]} 8... Bxc3 {[%clk 0:02:19.3]} 9. bxc3 {[%clk 0:01:38.2]} 9... Qc5
{[%clk 0:02:08]} 10. c4 {[%clk 0:01:33.1]} 10... Ne3 {[%clk 0:02:03.8]} 11. Qa4+
{[%clk 0:01:28.3]} 11... Bd7 {[%clk 0:01:58.9]} 12. Qb3 {[%clk 0:01:04.9]} 12...
Nxf1 {[%clk 0:01:46.5]} 13. Kxf1 {[%clk 0:01:03.5]} 13... Bc6 {[%clk 0:01:26.8]}
14. Nh3 {[%clk 0:00:56.5]} 14... Na6 {[%clk 0:01:25.4]} 15. Nf4 {[%clk
0:00:50.5]} 15... Rd8 {[%clk 0:01:20.4]} 16. Bc3 {[%clk 0:00:48]} 16... O-O
{[%clk 0:01:13.4]} 17. h4 {[%clk 0:00:41.7]} 17... Qe3 {[%clk 0:01:05.8]} 18.
Qb2 {[%clk 0:00:30.8]} 18... Bxf3 {[%clk 0:00:44.4]} 19. exf3 {[%clk 0:00:30.1]}
19... Qxf3+ {[%clk 0:00:44.6]} 20. Kg1 {[%clk 0:00:30.6]} 20... Qxg3+ {[%clk
0:00:44.6]} 21. Ng2 {[%clk 0:00:29.4]} 21... Nc5 {[%clk 0:00:35.4]} 22. Be5
{[%clk 0:00:20]} 22... Qg4 {[%clk 0:00:27.7]} 23. Rf1 {[%clk 0:00:16.4]} 23...
Nd3 {[%clk 0:00:23]} 24. Qc3 {[%clk 0:00:14.4]} 24... f6 {[%clk 0:00:20.2]} 25.
Bxc7 {[%clk 0:00:13.1]} 25... Rd7 {[%clk 0:00:20.5]} 26. Bf4 {[%clk 0:00:09]}
26... Nxf4 {[%clk 0:00:16.1]} 27. Rxf4 {[%clk 0:00:08.2]} 27... Rd1+ {[%clk
0:00:16.2]} 28. Kh2 {[%clk 0:00:08.3]} 28... Rxh1+ {[%clk 0:00:15.1]} 29. Kxh1
{[%clk 0:00:09.2]} 29... Qd1+ {[%clk 0:00:14.5]} 30. Kh2 {[%clk 0:00:08.3]}
30... e5 {[%clk 0:00:14.8]} 31. Rf3 {[%clk 0:00:06.4]} 31... Rd8 {[%clk
0:00:13.4]} 32. c5 {[%clk 0:00:06.8]} 32... h6 {[%clk 0:00:11.2]} 33. Rg3 {[%clk
0:00:06.7]} 33... Rd4 {[%clk 0:00:09]} 34. c6 {[%clk 0:00:05.7]} 34... bxc6
{[%clk 0:00:08.8]} 35. Qxc6 {[%clk 0:00:06.2]} 35... Qe2 {[%clk 0:00:05.2]} 36.
Qc8+ {[%clk 0:00:05.6]} 36... Kh7 {[%clk 0:00:04.6]} 37. Qf5+ {[%clk 0:00:05.1]}
37... Kh8 {[%clk 0:00:03.7]} 38. Qc8+ {[%clk 0:00:03.8]} 38... Kh7 {[%clk
0:00:03.8]} 39. Qf5+ {[%clk 0:00:04.2]} 39... Kh8 {[%clk 0:00:04.3]} 40. Qh3
{[%clk 0:00:04.6]} 40... Rd2 {[%clk 0:00:03.9]} 41. Qc8+ {[%clk 0:00:03.7]}
41... Kh7 {[%clk 0:00:03.7]} 42. Qf5+ {[%clk 0:00:04.3]} 42... Kh8 {[%clk
0:00:04.2]} 43. Qg6 {[%clk 0:00:04.7]} 43... Rd7 {[%clk 0:00:03.7]} 44. Qe8+
{[%clk 0:00:04]} 44... Kh7 {[%clk 0:00:04.2]} 45. Qxd7 {[%clk 0:00:04.9]} 45...
Qe4 {[%clk 0:00:03.8]} 46. Qxg7# {[%clk 0:00:04.9]} 1-0

[Event "*** SCC Grand Prix: Titled Tuesday Blitz"]
[Site "Chess.com"]
[Date "2020.08.25"]
[Round "5"]
[White "Ausbildung"]
[Black "denispopov"]
[Result "0-1"]
[WhiteElo "2249"]
[BlackElo "1902"]
[TimeControl "180+1"]
[EndTime "10:57:49 PDT"]
[Termination "denispopov won by resignation"]

1. e4 {[%clk 0:02:51.9]} 1... c5 {[%clk 0:02:56.1]} 2. c4 {[%clk 0:02:51.3]}
2... Nc6 {[%clk 0:02:56]} 3. Nc3 {[%clk 0:02:51.9]} 3... g6 {[%clk 0:02:55.6]}
4. d3 {[%clk 0:02:52.2]} 4... Bg7 {[%clk 0:02:52.8]} 5. Nge2 {[%clk 0:02:52]}
5... e6 {[%clk 0:02:51.1]} 6. g3 {[%clk 0:02:51.4]} 6... Nge7 {[%clk 0:02:50]}
7. Bg2 {[%clk 0:02:51.2]} 7... O-O {[%clk 0:02:46.1]} 8. h4 {[%clk 0:02:50.4]}
8... d5 {[%clk 0:02:21.1]} 9. cxd5 {[%clk 0:02:46.4]} 9... exd5 {[%clk
0:02:21.6]} 10. exd5 {[%clk 0:02:45.4]} 10... Nb4 {[%clk 0:02:21]} 11. Qb3
{[%clk 0:02:31.2]} 11... Nxd3+ {[%clk 0:02:19.8]} 12. Kf1 {[%clk 0:02:27.2]}
12... Nf5 {[%clk 0:02:06.4]} 13. Bg5 {[%clk 0:02:21.5]} 13... f6 {[%clk
0:01:58.2]} 14. Bd2 {[%clk 0:02:08.6]} 14... Kh8 {[%clk 0:01:53.5]} 15. a3
{[%clk 0:02:03.7]} 15... Re8 {[%clk 0:01:46.7]} 16. Nf4 {[%clk 0:01:58.9]} 16...
Nd4 {[%clk 0:01:36.2]} 17. Qa2 {[%clk 0:01:38.1]} 17... b5 {[%clk 0:01:12]} 18.
Nxd3 {[%clk 0:01:35.7]} 18... c4 {[%clk 0:01:02]} 19. Nf4 {[%clk 0:01:33.3]}
19... Nb3 {[%clk 0:00:59.5]} 20. Rd1 {[%clk 0:01:28.9]} 20... Bg4 {[%clk
0:00:59.4]} 21. Qb1 {[%clk 0:01:23.5]} 21... Bxd1 {[%clk 0:00:57.8]} 22. Qxd1
{[%clk 0:01:22.5]} 22... Qe7 {[%clk 0:00:54.3]} 23. Bf3 {[%clk 0:01:19.6]} 23...
Rad8 {[%clk 0:00:50.4]} 24. Be3 {[%clk 0:01:18]} 24... a5 {[%clk 0:00:32.8]} 25.
Kg2 {[%clk 0:01:16.2]} 25... b4 {[%clk 0:00:28.8]} 26. axb4 {[%clk 0:01:15]}
26... axb4 {[%clk 0:00:29.7]} 27. Ne4 {[%clk 0:01:12.6]} 27... Qe5 {[%clk
0:00:20.5]} 28. Qc1 {[%clk 0:01:01.2]} 28... Nxc1 {[%clk 0:00:19.7]} 29. Bxc1
{[%clk 0:01:00]} 29... Rxd5 {[%clk 0:00:10]} 30. h5 {[%clk 0:00:52.1]} 30... g5
{[%clk 0:00:06.9]} 31. Nxd5 {[%clk 0:00:50.7]} 31... Qxd5 {[%clk 0:00:07.8]} 32.
h6 {[%clk 0:00:50.4]} 32... Rxe4 {[%clk 0:00:05.5]} 33. hxg7+ {[%clk 0:00:48.7]}
33... Kxg7 {[%clk 0:00:06.4]} 34. Re1 {[%clk 0:00:46.4]} 34... Rxe1 {[%clk
0:00:05.4]} 35. Bxd5 {[%clk 0:00:42.7]} 35... Rxc1 {[%clk 0:00:05.5]} 36. Kf3
{[%clk 0:00:41.9]} 36... c3 {[%clk 0:00:05.9]} 37. bxc3 {[%clk 0:00:41.3]} 37...
Rxc3+ {[%clk 0:00:05.9]} 38. Ke2 {[%clk 0:00:40.9]} 38... b3 {[%clk 0:00:06.2]}
39. Kd2 {[%clk 0:00:40]} 39... Rc5 {[%clk 0:00:06.4]} 40. Be4 {[%clk 0:00:39]}
40... b2 {[%clk 0:00:06.8]} 41. g4 {[%clk 0:00:37.7]} 41... h6 {[%clk
0:00:04.1]} 42. f3 {[%clk 0:00:37.1]} 42... Kf7 {[%clk 0:00:04.3]} 43. Bb1
{[%clk 0:00:36.3]} 43... Ke7 {[%clk 0:00:04.6]} 44. Ba2 {[%clk 0:00:35.9]} 44...
Kd6 {[%clk 0:00:04.6]} 45. Kd3 {[%clk 0:00:35.8]} 45... Rc1 {[%clk 0:00:04.2]}
46. Ke4 {[%clk 0:00:35]} 46... b1=Q+ {[%clk 0:00:03.9]} 47. Bxb1 {[%clk
0:00:34.6]} 47... Rxb1 {[%clk 0:00:04.8]} 48. Kf5 {[%clk 0:00:34.4]} 48... Rb3
{[%clk 0:00:05.7]} 49. Kg6 {[%clk 0:00:33.1]} 49... Rxf3 {[%clk 0:00:05.7]} 50.
Kxh6 {[%clk 0:00:33]} 50... Ke5 {[%clk 0:00:06.2]} 51. Kg6 {[%clk 0:00:32.2]}
51... Rg3 {[%clk 0:00:05.1]} 0-1

[Event "*** SCC Grand Prix: Titled Tuesday Blitz"]
[Site "Chess.com"]
[Date "2020.08.25"]
[Round "5"]
[White "TigrVShlyape"]
[Black "thedjoker98"]
[Result "1-0"]
[WhiteElo "2844"]
[BlackElo "2573"]
[TimeControl "180+1"]
[EndTime "10:57:50 PDT"]
[Termination "TigrVShlyape won by resignation"]

1. e4 {[%clk 0:03:00.9]} 1... e5 {[%clk 0:02:58.4]} 2. Nf3 {[%clk 0:02:59.8]}
2... Nc6 {[%clk 0:02:58.3]} 3. Bb5 {[%clk 0:02:59.5]} 3... g6 {[%clk 0:02:54.6]}
4. O-O {[%clk 0:02:58.1]} 4... Bg7 {[%clk 0:02:54.6]} 5. Re1 {[%clk 0:02:58]}
5... Nf6 {[%clk 0:02:53.4]} 6. c3 {[%clk 0:02:57.7]} 6... d6 {[%clk 0:02:53]} 7.
d4 {[%clk 0:02:55.6]} 7... Bd7 {[%clk 0:02:53.2]} 8. Bg5 {[%clk 0:02:53.1]} 8...
h6 {[%clk 0:02:49.8]} 9. Bh4 {[%clk 0:02:51.5]} 9... O-O {[%clk 0:02:41.8]} 10.
dxe5 {[%clk 0:02:06.8]} 10... Nxe5 {[%clk 0:02:34.4]} 11. Bxd7 {[%clk
0:02:04.9]} 11... Qxd7 {[%clk 0:02:27.5]} 12. Nxe5 {[%clk 0:02:03.2]} 12... dxe5
{[%clk 0:02:26.1]} 13. Qxd7 {[%clk 0:01:57.1]} 13... Nxd7 {[%clk 0:02:25.9]} 14.
Rd1 {[%clk 0:01:55.6]} 14... Nb6 {[%clk 0:02:14.4]} 15. Na3 {[%clk 0:01:49.8]}
15... c6 {[%clk 0:01:57.9]} 16. f3 {[%clk 0:01:41.8]} 16... g5 {[%clk
0:01:52.8]} 17. Bf2 {[%clk 0:01:40.8]} 17... Rfd8 {[%clk 0:01:52.3]} 18. Nc2
{[%clk 0:01:39]} 18... Bf8 {[%clk 0:01:50.1]} 19. b3 {[%clk 0:01:36.2]} 19...
Be7 {[%clk 0:01:46.3]} 20. Kf1 {[%clk 0:01:35.2]} 20... Rxd1+ {[%clk 0:01:45.8]}
21. Rxd1 {[%clk 0:01:34.3]} 21... Rd8 {[%clk 0:01:46.7]} 22. Rxd8+ {[%clk
0:01:33.9]} 22... Bxd8 {[%clk 0:01:47.6]} 23. Ne3 {[%clk 0:01:33.2]} 23... h5
{[%clk 0:01:41.9]} 24. Nf5 {[%clk 0:01:32]} 24... Nc8 {[%clk 0:01:35.1]} 25. a4
{[%clk 0:01:26.6]} 25... f6 {[%clk 0:01:32.6]} 26. h4 {[%clk 0:01:23.1]} 26...
Kf7 {[%clk 0:01:28.1]} 27. g3 {[%clk 0:00:53]} 27... b6 {[%clk 0:01:11.8]} 28.
Kg2 {[%clk 0:00:51.6]} 28... Bc7 {[%clk 0:01:11.2]} 29. Kh3 {[%clk 0:00:48.3]}
29... Ne7 {[%clk 0:01:09.4]} 30. Nxe7 {[%clk 0:00:45.5]} 30... Kxe7 {[%clk
0:01:10.3]} 31. Be3 {[%clk 0:00:45.7]} 31... gxh4 {[%clk 0:00:57.9]} 32. Kxh4
{[%clk 0:00:45.4]} 32... Kf7 {[%clk 0:00:52.6]} 33. Kxh5 {[%clk 0:00:45.3]}
33... a6 {[%clk 0:00:52.9]} 34. f4 {[%clk 0:00:31.7]} 34... b5 {[%clk 0:00:50]}
35. f5 {[%clk 0:00:30.9]} 35... bxa4 {[%clk 0:00:48.1]} 36. bxa4 {[%clk
0:00:30.7]} 36... Ba5 {[%clk 0:00:48.6]} 37. c4 {[%clk 0:00:31]} 37... Be1
{[%clk 0:00:47.4]} 38. g4 {[%clk 0:00:31]} 38... Bc3 {[%clk 0:00:45.3]} 39. g5
{[%clk 0:00:30.5]} 39... fxg5 {[%clk 0:00:45.6]} 40. Kxg5 {[%clk 0:00:30.6]}
40... Ba5 {[%clk 0:00:43.5]} 41. Bc5 {[%clk 0:00:30]} 41... Bd8+ {[%clk
0:00:43.1]} 42. Kg4 {[%clk 0:00:30.2]} 42... Bf6 {[%clk 0:00:42.1]} 43. Bd6
{[%clk 0:00:30.3]} 43... Bg7 {[%clk 0:00:41.6]} 44. Kg5 {[%clk 0:00:28]} 44...
Bf6+ {[%clk 0:00:40.9]} 45. Kh5 {[%clk 0:00:27.4]} 45... Bg7 {[%clk 0:00:40.6]}
46. Bc7 {[%clk 0:00:25.6]} 46... Bf6 {[%clk 0:00:40.4]} 47. Kh6 {[%clk
0:00:25.6]} 47... Bg7+ {[%clk 0:00:40.4]} 48. Kg5 {[%clk 0:00:25.8]} 48... Bf6+
{[%clk 0:00:40.5]} 49. Kh5 {[%clk 0:00:26]} 49... Bg7 {[%clk 0:00:40.8]} 50. Bd8
{[%clk 0:00:26.3]} 50... Bh8 {[%clk 0:00:37.2]} 51. Kh6 {[%clk 0:00:25]} 51...
Bg7+ {[%clk 0:00:36.4]} 52. Kg5 {[%clk 0:00:25.1]} 52... Bf8 {[%clk 0:00:33.3]}
53. f6 {[%clk 0:00:24.6]} 53... Bd6 {[%clk 0:00:23.2]} 54. Kf5 {[%clk 0:00:24]}
54... Bb8 {[%clk 0:00:22.1]} 55. Ba5 {[%clk 0:00:22.6]} 55... Bd6 {[%clk
0:00:17.6]} 56. Bc3 {[%clk 0:00:22.5]} 1-0

[Event "*** SCC Grand Prix: Titled Tuesday Blitz"]
[Site "Chess.com"]
[Date "2020.08.25"]
[Round "5"]
[White "mattcolins2025"]
[Black "Evgeny81"]
[Result "1-0"]
[WhiteElo "2479"]
[BlackElo "2683"]
[TimeControl "180+1"]
[EndTime "10:57:51 PDT"]
[Termination "mattcolins2025 won on time"]

1. d4 {[%clk 0:03:00.9]} 1... Nf6 {[%clk 0:02:59.5]} 2. c4 {[%clk 0:03:01.5]}
2... e5 {[%clk 0:02:59.9]} 3. dxe5 {[%clk 0:03:01.5]} 3... Ne4 {[%clk
0:03:00.4]} 4. Nd2 {[%clk 0:02:59.7]} 4... Nc5 {[%clk 0:03:00.1]} 5. Ngf3 {[%clk
0:02:58.9]} 5... Nc6 {[%clk 0:02:59.5]} 6. g3 {[%clk 0:02:58.4]} 6... d6 {[%clk
0:02:58]} 7. exd6 {[%clk 0:02:58.2]} 7... Bxd6 {[%clk 0:02:54.9]} 8. Bg2 {[%clk
0:02:58.3]} 8... Be6 {[%clk 0:02:50.7]} 9. O-O {[%clk 0:02:56.4]} 9... Qd7
{[%clk 0:02:48.8]} 10. Nb3 {[%clk 0:02:52.9]} 10... Nxb3 {[%clk 0:02:38.6]} 11.
axb3 {[%clk 0:02:52.5]} 11... O-O {[%clk 0:02:32.4]} 12. Be3 {[%clk 0:02:39.8]}
12... Rad8 {[%clk 0:02:27.8]} 13. Qc1 {[%clk 0:02:28.2]} 13... Bh3 {[%clk
0:02:21]} 14. Rd1 {[%clk 0:02:25.9]} 14... Bxg2 {[%clk 0:02:17.1]} 15. Kxg2
{[%clk 0:02:26]} 15... Qf5 {[%clk 0:02:13.8]} 16. Rd5 {[%clk 0:02:17]} 16... Qe6
{[%clk 0:02:07.2]} 17. Rd1 {[%clk 0:01:53.1]} 17... h6 {[%clk 0:02:02.5]} 18.
Kg1 {[%clk 0:01:36.1]} 18... a6 {[%clk 0:02:01.1]} 19. Rd5 {[%clk 0:01:26.1]}
19... Ne7 {[%clk 0:01:51.3]} 20. Rd1 {[%clk 0:01:24.7]} 20... Nf5 {[%clk
0:01:48.3]} 21. Nd4 {[%clk 0:01:19.4]} 21... Nxd4 {[%clk 0:01:46.6]} 22. Rxd4
{[%clk 0:01:19.2]} 22... Be5 {[%clk 0:01:42]} 23. Rxd8 {[%clk 0:01:19.1]} 23...
Rxd8 {[%clk 0:01:42.9]} 24. Qc2 {[%clk 0:01:19.4]} 24... Qf6 {[%clk 0:01:33.2]}
25. Rd1 {[%clk 0:01:14.4]} 25... Rxd1+ {[%clk 0:01:32.3]} 26. Qxd1 {[%clk
0:01:14.6]} 26... Bxb2 {[%clk 0:01:33]} 27. Qd5 {[%clk 0:01:13.7]} 27... b6
{[%clk 0:01:04.6]} 28. Qb7 {[%clk 0:01:08.6]} 28... Qd6 {[%clk 0:00:52]} 29.
Qc8+ {[%clk 0:01:06.5]} 29... Kh7 {[%clk 0:00:51.2]} 30. Qf5+ {[%clk 0:01:01]}
30... Kg8 {[%clk 0:00:49.2]} 31. Qc8+ {[%clk 0:01:00.8]} 31... Kh7 {[%clk
0:00:49.5]} 32. Qf5+ {[%clk 0:00:57.5]} 32... Qg6 {[%clk 0:00:49.7]} 33. Qxg6+
{[%clk 0:00:45.3]} 33... Kxg6 {[%clk 0:00:50.6]} 34. Bf4 {[%clk 0:00:45.1]}
34... c6 {[%clk 0:00:47.8]} 35. Bc7 {[%clk 0:00:44]} 35... b5 {[%clk 0:00:47.4]}
36. cxb5 {[%clk 0:00:44.4]} 36... cxb5 {[%clk 0:00:46.6]} 37. e4 {[%clk
0:00:43.8]} 37... Kf6 {[%clk 0:00:38.6]} 38. f4 {[%clk 0:00:43.1]} 38... Bc3
{[%clk 0:00:27.9]} 39. Kf2 {[%clk 0:00:41.2]} 39... a5 {[%clk 0:00:27.3]} 40.
Ke3 {[%clk 0:00:35.4]} 40... a4 {[%clk 0:00:27.7]} 41. bxa4 {[%clk 0:00:34.2]}
41... bxa4 {[%clk 0:00:28.6]} 42. Kd3 {[%clk 0:00:34.5]} 42... Be1 {[%clk
0:00:21.9]} 43. g4 {[%clk 0:00:33.8]} 43... Ke6 {[%clk 0:00:20]} 44. Kc2 {[%clk
0:00:32.3]} 44... g6 {[%clk 0:00:17.7]} 45. h3 {[%clk 0:00:30.4]} 45... Bb4
{[%clk 0:00:16.2]} 46. Be5 {[%clk 0:00:27.5]} 46... f5 {[%clk 0:00:14.9]} 47.
exf5+ {[%clk 0:00:24.2]} 47... gxf5 {[%clk 0:00:15.8]} 48. Bg7 {[%clk
0:00:22.5]} 48... Bd6 {[%clk 0:00:06.2]} 49. Bxh6 {[%clk 0:00:21.7]} 1-0